fUSD/lending_fUSD_20240118
["ID","MTS","AMOUNT","RATE_DAILY","PERIOD"]
[312023331,1705554656015,-500.0,0.00022465,2]
[312023332,1705554656024,-702.5,0.00022465,2]
[312023333,1705554656033,-500.0,0.00022465,2]
[312023334,1705554656042,-731.46,0.00022465,2]
[312023335,1705554656051,-762.44,0.00022465,2]
[312023336,1705554656060,-321.16730461,0.00022465,2]
[312023337,1705554656070,-639.67,0.00022465,2]
[312023338,1705554656079,-1106.75,0.00022465,2]
[312023339,1705554656089,-211.31515983,0.00022465,2]
[312023340,1705554656100,-288.68484017,0.00022465,2]
[312023341,1705554656109,-500.0,0.00022465,2]
[312023342,1705554656118,-608.85,0.00022465,2]
[312023343,1705554656127,-1059.58,0.00022465,2]
[312023344,1705554656137,-1083.09,0.00022465,2]
[312023345,1705554656146,-500.0,0.00022465,2]
[312023346,1705554656155,-3571.6,0.00022465,2]
[312023347,1705554656164,-500.0,0.00022465,2]
[312023348,1705554656174,-622.0,0.00022465,2]
[312023349,1705554656183,-500.0,0.00022465,2]
[312023350,1705554656192,-831.72,0.00022465,2]
[312023351,1705554656201,-553.47,0.00022465,2]
[312023352,1705554656210,-500.0,0.00022465,2]
[312023353,1705554656221,-500.0,0.00022465,2]
[312023354,1705554656230,-500.0,0.00022465,2]
[312023355,1705554656239,-633.33,0.00022465,2]
[312023356,1705554656248,-500.0,0.00022465,2]
[312023357,1705554656257,-1390.07,0.00022465,2]
[312023358,1705554656266,-644.57,0.00022465,2]
[312023359,1705554656275,-1803.62,0.00022465,2]
[312023360,1705554656285,-516.03442466,0.00022465,2]
[312023361,1705554656298,-446.06557534,0.00022465,2]
[312023362,1705554656307,-186.34853304,0.00022465,2]
[312023363,1705554656512,-821.82126809,0.00021817,2]
[312023364,1705554656523,-501.79939468,0.00021917,2]
[312023365,1705554656533,-313.65146696,0.00022465,2]
[312023366,1705554656543,-88.03334837,0.00022465,2]
[312023367,1705554656555,-411.96665163,0.00022465,2]
[312023368,1705554656565,-500.0,0.00022465,2]
[312023369,1705554656575,-500.0,0.00022465,2]
[312023370,1705554656585,-574.16,0.00022465,2]
[312023371,1705554656595,-500.0,0.00022465,2]
[312023372,1705554656605,-500.0,0.00022465,2]
[312023373,1705554656615,-500.0,0.00022465,2]
[312023374,1705554656625,-500.0,0.00022465,2]
[312023375,1705554656634,-751.05,0.00022465,2]
[312023376,1705554656648,-500.0,0.00022465,2]
[312023377,1705554656657,-500.0,0.00022465,2]
[312023378,1705554656667,-500.0,0.00022465,2]
[312023379,1705554656677,-500.0,0.00022465,2]
[312023380,1705554656687,-500.0,0.00022465,2]
[312023381,1705554656698,-598.94,0.00022465,2]
[312023382,1705554656708,-9506.95921778,0.00022465,2]
[312023383,1705554656781,-251.54635396,0.00022465,2]
[312023384,1705554657154,-500.0,0.00021917,2]
[312023385,1705554657164,-523.28680482,0.00021917,2]
[312023386,1705554657173,-500.0,0.00021917,2]
[312023387,1705554657183,-111.41442826,0.00022465,2]
[312023388,1705554657193,-821.54,0.00022465,2]
[312023389,1705554657203,-500.0,0.00022465,2]
[312023390,1705554657213,-898.08,0.00022465,2]
[312023391,1705554657224,-500.0,0.00022465,2]
[312023392,1705554657236,-500.0,0.00022465,2]
[312023393,1705554657246,-500.0,0.00022465,2]
[312023394,1705554657255,-632.83,0.00022465,2]
[312023395,1705554657264,-2210.16753385,0.00022465,2]
[312023396,1705554657277,-152.56246615,0.00022465,2]
[312023397,1705554657287,-500.0,0.00022465,2]
[312023398,1705554657296,-500.0,0.00022465,2]
[312023399,1705554657306,-321.73761137,0.00022465,2]
[312023400,1705554657408,-403.74961218,0.00021917,2]
[312023401,1705554657421,-96.25038782,0.00021917,2]
[312023402,1705554657432,-486.26238863,0.00022465,2]
[312023403,1705554657442,-677.44430873,0.00022465,2]
[312023404,1705554657455,-853.57569127,0.00022465,2]
[312023405,1705554657466,-500.0,0.00022465,2]
[312023406,1705554657476,-574.37,0.00022465,2]
[312023407,1705554657486,-124.49331656,0.00022465,2]
[312023408,1705554657499,-358.54738649,0.00022465,2]
[312023409,1705554657511,-352.38929695,0.00022465,2]
[312023410,1705554657521,-32.40135465,0.00022465,2]
[312023411,1705554657534,-1414.74864535,0.00022465,2]
[312023412,1705554657544,-500.0,0.00022465,2]
[312023413,1705554657553,-548.54,0.00022465,5]
[312023414,1705554657563,-1418.38,0.00022465,2]
[312023415,1705554657573,-719.02,0.00022465,2]
[312023416,1705554657582,-500.0,0.00022465,2]
[312023417,1705554657592,-1000.25,0.00022465,2]
[312023418,1705554657601,-4597.66,0.00022465,2]
[312023419,1705554657611,-767.72,0.00022465,2]
[312023420,1705554657621,-500.0,0.00022465,2]
[312023421,1705554657632,-500.0,0.00022465,2]
[312023422,1705554657644,-500.0,0.00022465,2]
[312023423,1705554657654,-1040.47,0.00022465,2]
[312023424,1705554657664,-591.1,0.00022465,2]
[312023425,1705554657674,-555.22,0.00022465,2]
[312023426,1705554657683,-2226.01,0.00022465,2]
[312023427,1705554657694,-500.0,0.00022465,2]
[312023428,1705554657705,-760.4,0.00022465,2]
[312023429,1705554657715,-1086.94,0.00022465,2]
[312023430,1705554657725,-500.0,0.00022465,2]
[312023431,1705554657735,-500.0,0.00022465,2]
[312023432,1705554657746,-775.2,0.00022465,2]
[312023433,1705554657757,-480.84763299,0.00022465,2]
[312023434,1705554657767,-500.0,0.00022465,2]
[312023435,1705554657779,-500.0,0.00022465,2]
[312023436,1705554657789,-500.0,0.00022465,2]
[312023437,1705554657800,-579.15,0.00022465,2]
[312023438,1705554657811,-439.13,0.00022465,2]
[312023439,1705554657821,-1152.55,0.00022465,2]
[312023440,1705554657831,-608.84,0.00022465,2]
[312023441,1705554657842,-500.0,0.00022465,2]
[312023442,1705554657853,-500.0,0.00022465,2]
[312023443,1705554657864,-500.0,0.00022465,2]
[312023444,1705554657876,-500.0,0.00022465,2]
[312023445,1705554657887,-505.92,0.00022465,2]
[312023446,1705554657898,-624.36516469,0.00022465,2]
[312023447,1705554657908,-596.85,0.00022465,2]
[312023448,1705554657919,-500.0,0.00022465,2]
[312023449,1705554657929,-557.53,0.00022465,2]
[312023450,1705554657940,-500.0,0.00022465,2]
[312023451,1705554657950,-500.0,0.00022465,2]
[312023452,1705554657960,-500.0,0.00022465,2]
[312023453,1705554657970,-431.14929935,0.00022465,2]
[312023454,1705554657984,-932.35070065,0.00022465,2]
[312023455,1705554657994,-297.95115515,0.00022465,2]
[312023456,1705554658003,-500.0,0.00022465,2]
[312023457,1705554658013,-500.0,0.00022465,2]
[312023458,1705554658022,-1238.49,0.00022465,2]
[312023459,1705554658032,-500.0,0.00022465,2]
[312023460,1705554658044,-500.0,0.00022465,2]
[312023461,1705554658053,-644.41,0.00022467,2]
[312023462,1705554658063,-3000.0,0.0002247,2]
[312023463,1705554658074,-3000.0,0.0002248,2]
[312023464,1705554658084,-3000.0,0.0002249,2]
[312023465,1705554658095,-370.92670381,0.00022496,2]
[312023466,1705554658104,-228.28031148,0.00022496,2]
[312023467,1705554658116,-1163.40738371,0.00022496,2]
[312023468,1705554658131,-337.65962337,0.00022496,2]
[312023469,1705554658142,-181.24608377,0.000225,2]
[312023470,1705554658154,-1266.84474446,0.000225,2]
[312023471,1705554658166,-519.65363799,0.000225,2]
[312023472,1705554658180,-1442.994328,0.000225,2]
[312023473,1705554658200,-342.37,0.00021917,2]
[312023474,1705554658211,-946.56165876,0.000225,2]
[312023475,1705554658225,-1065.18041574,0.000225,2]
[312023476,1705554658239,-1256.22416834,0.000225,2]
[312023477,1705554658252,-1176.31721392,0.000225,2]
[312023478,1705554658265,-4149.38318394,0.000225,2]
[312023479,1705554658277,-235.91015643,0.000225,2]
[312023480,1705554658287,-3000.0,0.000225,2]
[312023481,1705554658297,-160.94,0.00022505,2]
[312023482,1705554658307,-12438.88163208,0.00022506,2]
[312023484,1705554693936,207.0,0.00018208,2]
[312023485,1705555578448,468.40081173,0.00018208,2]
[312023486,1705555580367,574.0,0.00018414,2]
[312023507,1705555832300,-361.01083726,0.000188,2]
[312023508,1705555832311,-150.0,0.00019471,2]
[312023509,1705555832323,-150.0,0.00019485,2]
[312023510,1705555832332,-150.0,0.0001964,2]
[312023511,1705555832342,-1621.47527875,0.0002,2]
[312023512,1705555832360,-508.47962113,0.0002,2]
[312023513,1705555832380,-192.46277477,0.0002,2]
[312023514,1705555832390,-611.96292915,0.0002,2]
[312023515,1705555832414,-409.96149532,0.0002,2]
[312023516,1705555832436,-108.33735721,0.0002,2]
[312023517,1705555832447,-150.0,0.00020133,2]
[312023518,1705555832457,-141.56421884,0.00020153,2]
[312023519,1705555832471,-8.43578116,0.00020153,2]
[312023520,1705555832480,-250.0,0.00020154,2]
[312023521,1705555832490,-2185.81751712,0.00020154,2]
[312023522,1705555832502,-616.35924009,0.00020154,2]
[312023524,1705555832515,-379.51569532,0.00020154,2]
[312023536,1705555838241,-280.0,0.00020154,2]
[312023538,1705555841571,-323.09754747,0.00020154,2]
[312023539,1705555841582,-1425.32556771,0.00020168,2]
[312023540,1705555841602,-476.45443229,0.00020168,2]
[312023541,1705555841614,-755.11416588,0.0002017,2]
[312023544,1705555843253,-614.29174979,0.0002017,2]
[312023545,1705555843415,-652.20937819,0.0002017,2]
[312023546,1705555843472,-3297.54470614,0.0002017,2]
[312023547,1705555843481,-153.14,0.00020178,2]
[312023548,1705555843491,-598.64,0.00020185,2]
[312023549,1705555843500,-222.97529386,0.00020229,2]
[312023550,1705555843512,-277.02470614,0.00020229,2]
[312023551,1705555843523,-1852.42,0.0002029,2]
[312023552,1705555843533,-150.0,0.00020292,2]
[312023553,1705555843544,-191.43,0.00020297,2]
[312023554,1705555843554,-1827.53,0.00020302,2]
[312023555,1705555843564,-717.16,0.00020308,2]
[312023556,1705555843573,-23890.0,0.00020308,2]
[312023557,1705555843585,-200.0,0.00020314,2]
[312023559,1705555843595,-2705.0,0.00020316,2]
[312023561,1705555843604,-500.0,0.00020329,2]
[312023563,1705555843614,-162.51772118,0.0002033,2]
[312023564,1705555843625,-200.0,0.00020345,2]
[312023565,1705555843635,-150.0,0.00020361,2]
[312023566,1705555843644,-151.79,0.00020364,2]
[312023567,1705555843653,-249.28,0.00020384,2]
[312023568,1705555843663,-380.81,0.00020384,2]
[312023569,1705555843672,-759.26,0.00020384,2]
[312023570,1705555843682,-162.45,0.00020449,2]
[312023571,1705555843691,-162.93,0.00020495,2]
[312023572,1705555843701,-2000.0,0.00020548,2]
[312023573,1705555843711,-282.84,0.00020599,2]
[312023574,1705555843721,-574.0,0.00020678,2]
[312023575,1705555843731,-153.14,0.00020683,2]
[312023576,1705555843740,-152.15788925,0.00020685,2]
[312023577,1705555843750,-159.87,0.00020738,2]
[312023578,1705555843759,-2266.3782266,0.00020822,2]
[312023579,1705555843772,-411.7493109,0.00020822,2]
[312023580,1705555843784,-364.6124625,0.00020822,2]
[312023581,1705555843795,-150.0,0.00021087,2]
[312023582,1705555843805,-598.64,0.00021164,2]
[312023583,1705555843815,-291.49,0.00021171,2]
[312023584,1705555843826,-293.17,0.00021178,2]
[312023585,1705555843836,-319.03,0.00021178,2]
[312023586,1705555843847,-416.31,0.00021178,2]
[312023587,1705555843856,-406.37,0.00021178,2]
[312023588,1705555843867,-153.14,0.00021187,2]
[312023589,1705555843877,-150.0,0.00021284,2]
[312023590,1705555843889,-156.45,0.0002131,2]
[312023591,1705555843899,-249.28,0.00021403,2]
[312023592,1705555843908,-150.0,0.00021455,2]
[312023593,1705555843920,-162.45,0.00021471,2]
[312023594,1705555843930,-166.83,0.00021471,2]
[312023595,1705555843942,-150.0,0.00021605,2]
[312023596,1705555843953,-163.53,0.00021645,2]
[312023597,1705555843962,-153.14,0.00021692,2]
[312023598,1705555843974,-183.58386975,0.00021757,3]
[312023599,1705555843985,-963.76366775,0.00021757,2]
[312023620,1705555846206,-1959.89150662,0.00021757,2]
[312023621,1705555846234,-10161.17482563,0.00021757,2]
[312023622,1705555846244,-162.93,0.0002178,2]
[312023623,1705555846253,-1000.0,0.00021817,2]
[312023624,1705555846263,-5000.0,0.00021817,2]
[312023625,1705555846273,-5335.63397856,0.00021817,2]
[312023626,1705555846357,-2332.45042144,0.00021817,2]
[312023627,1705555846366,-156.45,0.00021843,2]
[312023628,1705555846376,-150.0,0.00021855,2]
[312023629,1705555846386,-150.63,0.00021858,2]
[312023630,1705555846396,-150.0,0.00021897,2]
[312023631,1705555846406,-300.0,0.000219,7]
[312023632,1705555846415,-419.42949528,0.00021916,2]
[312023633,1705555846425,-503.92277985,0.00021917,2]
[312023634,1705555846434,-502.5889524,0.00021917,2]
[312023635,1705555846444,-500.0,0.00021917,2]
[312023636,1705555846454,-500.0,0.00021917,2]
[312023637,1705555846463,-500.0,0.00021917,2]
[312023638,1705555846473,-500.0,0.00021917,2]
[312023639,1705555846482,-506.16859219,0.00021917,2]
[312023640,1705555846492,-500.0,0.00021917,2]
[312023641,1705555846503,-500.0,0.00021917,2]
[312023642,1705555846513,-514.79473233,0.00021917,2]
[312023643,1705555846525,-500.0,0.00021917,2]
[312023644,1705555846535,-500.0,0.00021917,2]
[312023645,1705555846546,-500.0,0.00021917,2]
[312023646,1705555846557,-500.0,0.00021917,2]
[312023647,1705555846566,-500.0,0.00021917,2]
[312023648,1705555846578,-500.0,0.00021917,2]
[312023649,1705555846589,-500.0,0.00021917,2]
[312023650,1705555846598,-375.59765918,0.00021917,2]
[312023651,1705555846609,-500.0,0.00021917,2]
[312023652,1705555846621,-500.0,0.00021917,2]
[312023653,1705555846632,-500.0,0.00021917,2]
[312023654,1705555846642,-500.0,0.00021917,2]
[312023655,1705555846652,-500.0,0.00021917,2]
[312023656,1705555846662,-500.0,0.00021917,2]
[312023657,1705555846672,-500.0,0.00021917,2]
[312023658,1705555846682,-500.0,0.00021917,2]
[312023659,1705555846692,-500.0,0.00021917,2]
[312023660,1705555846703,-173.64752641,0.00021917,2]
[312023661,1705555846714,-564.74971363,0.00021917,2]
[312023662,1705555846726,-177.1030638,0.00021917,2]
[312023663,1705555846737,-3909.91,0.00021917,2]
[312023664,1705555846750,-455.77735615,0.00021917,2]
[312023665,1705555846760,-598.0,0.00021917,2]
[312023666,1705555846770,-500.0,0.00021917,2]
[312023667,1705555846780,-164.08,0.00021917,2]
[312023668,1705555846791,-500.0,0.00021917,2]
[312023669,1705555846802,-500.0,0.00021917,2]
[312023670,1705555846813,-500.0,0.00021917,2]
[312023671,1705555846823,-500.0,0.00021917,2]
[312023672,1705555846833,-651.06,0.00021917,2]
[312023673,1705555846842,-546.18,0.00021917,2]
[312023674,1705555846852,-500.0,0.00021917,2]
[312023675,1705555846862,-500.0,0.00021917,2]
[312023676,1705555846872,-500.0,0.00021917,2]
[312023677,1705555846882,-500.0,0.00021917,2]
[312023678,1705555846894,-3014.74,0.00021918,2]
[312023679,1705555846905,-250.0,0.00021918,2]
[312023680,1705555846915,-271.39354425,0.0002199,2]
[312023681,1705555846926,-155.4915277,0.00022,2]
[312023682,1705555846936,-450.0,0.00022,3]
[312023683,1705555846946,-1115.05354726,0.0002209,2]
[312023684,1705555846957,-302.08,0.000221,2]
[312023685,1705555846967,-598.64,0.00022142,2]
[312023686,1705555846978,-150.0,0.00022185,2]
[312023687,1705555846988,-500.0,0.00022189,2]
[312023688,1705555846997,-500.0,0.00022189,2]
[312023689,1705555847008,-500.0,0.00022189,2]
[312023690,1705555847022,-500.0,0.00022189,2]
[312023691,1705555847032,-500.0,0.00022189,2]
[312023692,1705555847042,-252.93943054,0.00022189,2]
[312023693,1705555847052,-500.0,0.00022189,2]
[312023694,1705555847062,-182.71562763,0.00022189,2]
[312023695,1705555847072,-500.0,0.00022189,2]
[312023696,1705555847083,-500.0,0.00022189,2]
[312023697,1705555847095,-500.0,0.00022189,2]
[312023698,1705555847106,-500.0,0.00022189,2]
[312023699,1705555847117,-150.0,0.00022189,2]
[312023700,1705555847127,-500.0,0.00022189,2]
[312023701,1705555847136,-500.0,0.00022189,2]
[312023702,1705555847147,-501.08936581,0.00022189,2]
[312023703,1705555847157,-500.0,0.00022189,2]
[312023704,1705555847166,-150.0,0.00022189,2]
[312023705,1705555847176,-500.0,0.00022189,2]
[312023706,1705555847186,-500.0,0.00022189,2]
[312023707,1705555847196,-500.0,0.00022189,2]
[312023708,1705555847206,-500.0,0.00022189,2]
[312023709,1705555847217,-500.0,0.00022189,2]
[312023710,1705555847227,-500.0,0.00022189,2]
[312023711,1705555847237,-522.55835865,0.00022189,2]
[312023712,1705555847248,-567.9453003,0.00022189,2]
[312023713,1705555847258,-500.0,0.00022189,2]
[312023714,1705555847267,-500.0,0.00022189,2]
[312023715,1705555847277,-500.0,0.00022189,2]
[312023716,1705555847287,-500.0,0.00022189,2]
[312023717,1705555847297,-500.0,0.00022189,2]
[312023718,1705555847307,-1083.68,0.00022189,2]
[312023719,1705555847317,-522.24,0.00022189,2]
[312023720,1705555847327,-1161.56,0.00022189,5]
[312023721,1705555847337,-500.0,0.00022189,2]
[312023722,1705555847346,-500.0,0.00022189,2]
[312023723,1705555847356,-2792.59,0.00022189,2]
[312023724,1705555847366,-500.0,0.00022189,2]
[312023725,1705555847376,-569.01,0.00022189,2]
[312023726,1705555847386,-500.0,0.00022189,2]
[312023727,1705555847396,-4626.01,0.00022189,2]
[312023728,1705555847406,-652.71,0.00022189,2]
[312023729,1705555847416,-5231.86,0.00022189,2]
[312023730,1705555847425,-500.0,0.00022189,2]
[312023731,1705555847436,-1762.68,0.00022189,2]
[312023732,1705555847446,-1333.73,0.00022189,2]
[312023733,1705555847456,-11417.02,0.00022189,2]
[312023734,1705555847467,-500.0,0.00022189,2]
[312023735,1705555847477,-500.0,0.00022189,2]
[312023736,1705555847487,-870.26,0.00022189,2]
[312023737,1705555847498,-710.57,0.00022189,2]
[312023738,1705555847508,-1075.14,0.00022189,2]
[312023739,1705555847518,-608.44,0.00022189,2]
[312023740,1705555847528,-531.02550611,0.00022189,2]
[312023741,1705555847538,-3143.6,0.00022189,2]
[312023742,1705555847548,-667.13,0.00022189,2]
[312023743,1705555847557,-313.25264907,0.00022189,2]
[312023744,1705555847571,-550.25133661,0.00022189,2]
[312023745,1705555847590,-2261.64601432,0.00022189,2]
[312023746,1705555847856,-532.75,0.00022189,2]
[312023747,1705555847867,-640.03,0.00022189,2]
[312023748,1705555847877,-554.16,0.00022189,2]
[312023749,1705555847887,-505.12,0.00022189,2]
[312023750,1705555847897,-1488.27477289,0.00022189,2]
[312023751,1705555847909,-542.51522711,0.00022189,2]
[312023752,1705555847920,-500.0,0.00022189,2]
[312023753,1705555847932,-500.0,0.00022189,2]
[312023754,1705555847942,-500.0,0.00022189,2]
[312023755,1705555847952,-500.0,0.00022189,2]
[312023756,1705555847961,-727.76,0.00022189,2]
[312023757,1705555847972,-500.0,0.00022189,2]
[312023758,1705555847983,-682.81,0.00022189,2]
[312023759,1705555847992,-500.0,0.00022189,2]
[312023760,1705555848002,-500.0,0.00022189,2]
[312023761,1705555848016,-500.0,0.00022189,2]
[312023762,1705555848025,-785.82,0.00022189,2]
[312023763,1705555848036,-750.28,0.00022189,2]
[312023764,1705555848046,-460.17720506,0.00022189,2]
[312023765,1705555848057,-500.0,0.00022189,2]
[312023766,1705555848066,-502.39,0.00022189,2]
[312023767,1705555848076,-500.0,0.00022189,2]
[312023768,1705555848085,-8993.43,0.00022189,2]
[312023769,1705555848096,-523.87,0.00022189,2]
[312023770,1705555848107,-4022.95,0.00022189,2]
[312023771,1705555848116,-500.0,0.00022189,2]
[312023772,1705555848126,-500.0,0.00022189,2]
[312023773,1705555848135,-1295.98,0.00022189,2]
[312023774,1705555848145,-500.0,0.00022189,2]
[312023775,1705555848154,-500.0,0.00022189,2]
[312023776,1705555848163,-2067.39,0.00022189,2]
[312023777,1705555848172,-69.53642193,0.00022189,2]
[312023778,1705555848185,-430.46357807,0.00022189,2]
[312023779,1705555848196,-500.0,0.00022189,2]
[312023780,1705555848207,-500.0,0.00022189,2]
[312023781,1705555848218,-500.0,0.00022189,2]
[312023782,1705555848227,-657.27,0.00022189,2]
[312023783,1705555848237,-500.0,0.00022189,2]
[312023784,1705555848246,-500.0,0.00022189,2]
[312023785,1705555848256,-2027.07,0.00022189,2]
[312023786,1705555848265,-500.0,0.00022189,2]
[312023787,1705555848274,-596.93234941,0.00022189,2]
[312023788,1705555848284,-875.22,0.00022189,2]
[312023789,1705555848293,-500.0,0.00022189,2]
[312023790,1705555848303,-500.0,0.00022189,2]
[312023791,1705555848312,-694.85,0.00022189,2]
[312023792,1705555848324,-500.0,0.00022189,2]
[312023793,1705555848333,-500.0,0.00022189,2]
[312023794,1705555848342,-500.0,0.00022189,2]
[312023795,1705555848352,-500.0,0.00022189,2]
[312023796,1705555848362,-500.0,0.00022189,2]
[312023797,1705555848372,-500.0,0.00022189,2]
[312023798,1705555848382,-507.96,0.00022189,2]
[312023799,1705555848391,-1269.4,0.00022189,2]
[312023800,1705555848401,-500.0,0.00022189,2]
[312023801,1705555848410,-527.59,0.00022189,2]
[312023802,1705555848420,-500.0,0.00022189,2]
[312023803,1705555848430,-500.0,0.00022189,2]
[312023804,1705555848440,-500.0,0.0002219,2]
[312023805,1705555848451,-500.0,0.0002219,2]
[312023806,1705555848460,-500.0,0.0002219,2]
[312023807,1705555848470,-500.0,0.0002219,2]
[312023808,1705555848479,-500.0,0.0002219,2]
[312023809,1705555848488,-500.0,0.0002219,2]
[312023810,1705555848498,-500.0,0.0002219,2]
[312023811,1705555848508,-824.59,0.0002219,2]
[312023812,1705555848517,-500.0,0.0002219,2]
[312023813,1705555848526,-500.0,0.0002219,2]
[312023814,1705555848536,-500.0,0.0002219,2]
[312023815,1705555848545,-503.4304059,0.0002219,2]
[312023816,1705555848554,-605.95,0.0002219,2]
[312023817,1705555848564,-500.0,0.0002219,2]
[312023818,1705555848573,-500.0,0.0002219,2]
[312023819,1705555848582,-500.0,0.0002219,2]
[312023820,1705555848591,-500.0,0.0002219,2]
[312023821,1705555848601,-500.0,0.0002219,2]
[312023822,1705555848610,-278.24186768,0.0002219,2]
[312023823,1705555848619,-355.12544098,0.0002219,2]
[312023824,1705555848628,-500.0,0.0002219,2]
[312023825,1705555848637,-500.0,0.0002219,2]
[312023826,1705555848647,-500.0,0.0002219,2]
[312023827,1705555848656,-306.94191488,0.0002219,2]
[312023828,1705555848665,-489.91099867,0.0002219,2]
[312023829,1705555848680,-10.08900133,0.0002219,2]
[312023830,1705555848691,-266.81658669,0.0002219,2]
[312023831,1705555848707,-332.40071809,0.0002219,2]
[312023832,1705555848716,-500.0,0.0002219,2]
[312023833,1705555848726,-237.30033299,0.0002219,2]
[312023834,1705555848737,-333.76147852,0.0002219,2]
[312023835,1705555848746,-500.0,0.0002219,2]
[312023836,1705555848755,-506.83699323,0.0002219,2]
[312023837,1705555848765,-93.4292604,0.0002219,2]
[312023838,1705555848776,-406.5707396,0.0002219,2]
[312023839,1705555848786,-522.40371043,0.0002219,2]
[312023840,1705555848795,-500.0,0.0002219,2]
[312023841,1705555848804,-500.0,0.0002219,2]
[312023842,1705555848813,-480.97064667,0.0002219,2]
[312023843,1705555848825,-19.02935333,0.0002219,2]
[312023844,1705555848834,-392.03331962,0.0002219,2]
[312023845,1705555848848,-107.96668038,0.0002219,2]
[312023846,1705555848857,-521.44574748,0.0002219,2]
[312023847,1705555848866,-270.73804077,0.0002219,2]
[312023848,1705555973181,5000.0,0.00025,30]
[312023850,1705556735478,-557.86,0.0001854,2]
[312023854,1705557016849,151.15160223,0.00018439,2]
[312023861,1705557032366,-285.0,0.00018529,2]
[312023862,1705557032378,-308.5094613,0.00018529,2]
[312023863,1705557032473,-662.73943223,0.00018529,2]
[312023864,1705557032483,-2334.37977723,0.0001853,2]
[312023865,1705557032498,-856.29794043,0.0001853,2]
[312023866,1705557032508,-246.69922222,0.0001853,2]
[312023867,1705557032517,-155.0,0.0001853,2]
[312023868,1705557032527,-59.76834543,0.00018531,2]
[312023869,1705557032538,-1960.76655701,0.00018531,2]
[312023870,1705557032547,-150.0,0.00018539,2]
[312023871,1705557032556,-284.29206888,0.0001854,2]
[312023872,1705557032566,-50567.94204445,0.0001854,2]
[312023873,1705557032575,-500.0,0.0001854,2]
[312023874,1705557032583,-151.15160211,0.0001866,2]
[312023875,1705557032592,-151.15160211,0.00018881,2]
[312023876,1705557032601,-151.15160211,0.00019102,2]
[312023877,1705557032611,-468.82049449,0.00019158,2]
[312023878,1705557032620,-150.0,0.00019808,2]
[312023879,1705557032629,-619.4,0.00020384,2]
[312023880,1705557032638,-300.89,0.0002039,2]
[312023881,1705557032648,-210.0,0.00020393,2]
[312023882,1705557032657,-646.13,0.00020394,2]
[312023883,1705557032666,-176.89,0.00020394,2]
[312023884,1705557032675,-157.16,0.00020394,2]
[312023885,1705557032684,-4486.89,0.00020401,2]
[312023886,1705557032693,-1156.73,0.00020403,2]
[312023887,1705557032702,-250.0,0.00020458,2]
[312023888,1705557032711,-200.0,0.0002046,2]
[312023889,1705557032720,-23900.0,0.0002046,2]
[312023890,1705557032730,-200.0,0.00020486,2]
[312023891,1705557032739,-150.0,0.00020503,2]
[312023892,1705557032748,-170.5,0.00020509,2]
[312023893,1705557032757,-158.47,0.00020611,2]
[312023894,1705557032767,-162.15,0.00020665,2]
[312023895,1705557032776,-557.86,0.00020804,2]
[312023896,1705557032786,-150.0,0.00020875,2]
[312023897,1705557032795,-159.47,0.00020963,2]
[312023898,1705557032804,-1000.0,0.00020963,2]
[312023899,1705557032813,-4303.96424147,0.00021,2]